Workbook

Sheet 11.1
A1: Example 11.1
A3: Means | B3: job | C3: 1 | D3: 2
B4: a | C4: 4 | D4: 5
B5: b | C5: 5 | D5: 8
A7: Realizations | C7: =_xll.PsiExponential(C4) -> 1.583324193 | D7: =_xll.PsiExponential(D4) -> 24.87774515
C8: =_xll.PsiExponential(C5) -> 0.3941137234 | D8: =_xll.PsiExponential(D5) -> 7.408279492
A10: Sequence | C10: 1 | D10: 2 | F10: 2 | G10: 1
A11: Completions | C11: =C7 -> 1.583324193 | D11: =C11+D7 -> 26.46106934 | F11: =D7 -> 24.87774515 | G11: =F11+C7 -> 26.46106934
C12: =C11+C8 -> 1.977437916 | D12: =MAX(D11,C12)+D8 -> 33.86934884 | F12: =F11+D8 -> 32.28602464 | G12: =MAX(G11,F12)+C8 -> 32.68013837
I13: pct
C14: Expected makespan | D14: =_xll.PsiMean(D12) -> 19.50703256 | G14: =_xll.PsiMean(G12) -> 19.33640124 | I14: =(D14-G14)/G14 -> 0.008824357968
C15: S.D. of makespan | D15: =_xll.PsiStdDev(D12) -> 10.52074447 | G15: =_xll.PsiStdDev(G12) -> 10.39742211
A17: Process time means | C17: =_xll.PsiMean(C7) -> 3.999982023 | D17: =_xll.PsiMean(D7) -> 4.999980983
A18: (as simulated) | C18: =_xll.PsiMean(C8) -> 5.000038648 | D18: =_xll.PsiMean(D8) -> 7.999963226

Sheet 11.2
A1: Example 11.2
A3: Means | B3: job | C3: 1 | D3: 2 | J3: Summary | K3: Table
B4: a | C4: 1 | D4: 1 | J4: b2 | K4: pct
B5: b | C5: 1 | D5: =1+SQRT(7) -> 3.645751311 | F5: Treat b2 as a variable | J5: 2.5 | K5: 0.0431
J6: 3 | K6: 0.0457
A7: Realizations | C7: =_xll.PsiExponential(C4) -> 4.176772462 | D7: =_xll.PsiExponential(D4) -> 0.1574607109 | J7: 3.645751311 | K7: 0.0465
C8: =_xll.PsiExponential(C5) -> 1.924562337 | D8: =_xll.PsiExponential(D5) -> 0.3321329073 | J8: 4 | K8: 0.0463
J9: 4.5 | K9: 0.0456
A10: Sequence | C10: 1 | D10: 2 | F10: 2 | G10: 1 | K10: based on
A11: Completions | C11: =C7 -> 4.176772462 | D11: =C11+D7 -> 4.334233173 | F11: =D7 -> 0.1574607109 | G11: =F11+C7 -> 4.334233173 | K11: sample size
C12: =C11+C8 -> 6.101334799 | D12: =MAX(D11,C12)+D8 -> 6.433467706 | F12: =F11+D8 -> 0.4895936182 | G12: =MAX(G11,F12)+C8 -> 6.25879551 | K12: of 100,000
I13: pct
C14: Expected makespan | D14: =_xll.PsiMean(D12) -> 6.146005351 | G14: =_xll.PsiMean(G12) -> 5.860078257 | I14: =(D14-G14)/G14 -> 0.04879236778
C15: S.D. of makespan | D15: =_xll.PsiStdDev(D12) -> 3.943009186 | G15: =_xll.PsiStdDev(G12) -> 3.799518455
A17: Process time means | C17: =_xll.PsiMean(C7) -> 0.999991553 | D17: =_xll.PsiMean(D7) -> 1.000007868
A18: (as simulated) | C18: =_xll.PsiMean(C8) -> 1.000010919 | D18: =_xll.PsiMean(D8) -> 3.645754758

Sheet 11.3a
A1: Example 11.3 | C1: Deterministic Counterpart Sequence
A3: Job j | B3: 1 | C3: 2 | D3: 3 | E3: 4 | F3: 5
A4: Mean A | B4: 9.94 | C4: 10.14 | D4: 10.15 | E4: 10.3 | F4: 10.45
A5: StDev A | B5: 0.32 | C5: 0.02 | D5: 0.73 | E5: 0.91 | F5: 0.27
A6: Mean B | B6: 10.16 | C6: 10.16 | D6: 10.26 | E6: 10.45 | F6: 10.46
A7: StDev B | B7: 0.74 | C7: 0.11 | D7: 0.76 | E7: 0.2 | F7: 0.05
A9: Expected differences based on the comparison in Theorem 11.1.
B10: Calculations made in VBA from the user-defined function ExpDiff
B12: 1 | C12: 2 | D12: 3 | E12: 4 | F12: 5
A13: 1 | B13: =ExpDiff(MA,MB,SA,SB,$A13,B$12) -> 0 | C13: =ExpDiff(MA,MB,SA,SB,$A13,C$12) -> 0.03287211118 | D13: 0.006268141381 | E13: 0.1658665749 | F13: -0.03711711229
A14: 2 | B14: -0.03287211118 | C14: 0 | D14: 0.0324712079 | E14: 0.2745918538 | F14: 0.004536954727
A15: 3 | B15: -0.006268141381 | C15: -0.0324712079 | D15: 0 | E15: 0.1678913572 | F15: -0.03707465322
A16: 4 | B16: -0.1658665749 | C16: -0.2745918538 | D16: -0.1678913572 | E16: 0 | F16: -0.3051267767
A17: 5 | B17: 0.03711711229 | C17: -0.004536954727 | D17: 0.03707465322 | E17: 0.3051267767 | F17: 0
A19: Sequence | B19: 1 | C19: 2 | D19: 3 | E19: 4 | F19: 5
C20: =INDEX($B$13:$F$17,B19,C19) -> 0.03287211118 | D20: =INDEX($B$13:$F$17,C19,D19) -> 0.0324712079 | E20: =INDEX($B$13:$F$17,D19,E19) -> 0.1678913572 | F20: =INDEX($B$13:$F$17,E19,F19) -> -0.3051267767
A21: =IF(C21<0,"stable","not stable") -> not stable | B21: max | C21: =MAX(C20:F20) -> 0.1678913572

Sheet 11.3b
A1: Example 11.3 | C1: An API-Stable Sequence
H2: Calculations for Array(1,2)
A3: Job j | B3: 1 | C3: 2 | D3: 3 | E3: 4 | F3: 5 | H3: StDev A2 | I3: =C5 -> 0.02 | J3: =I3^2 -> 0.0004
A4: Mean A | B4: 9.94 | C4: 10.14 | D4: 10.15 | E4: 10.3 | F4: 10.45 | H4: StDev B1 | I4: =B7 -> 0.74 | J4: =I4^2 -> 0.5476
A5: StDev A | B5: 0.32 | C5: 0.02 | D5: 0.73 | E5: 0.91 | F5: 0.27 | J5: =J3+J4 -> 0.548 | K5: =_xlfn.NORM.S.DIST(J7,TRUE) -> 0.4892230231
A6: Mean B | B6: 10.16 | C6: 10.16 | D6: 10.26 | E6: 10.45 | F6: 10.46 | J6: =SQRT(J5) -> 0.7402702209 | K6: =_xlfn.NORM.S.DIST(J7,FALSE) -> 0.3987967076
A7: StDev B | B7: 0.74 | C7: 0.11 | D7: 0.76 | E7: 0.2 | F7: 0.05 | I7: z | J7: =(C4-B6)/J6 -> -0.02701716135
A9: Expected differences based on the comparison in Theorem 11.1. | J9: =J6*(K6+J7*K5) -> 0.2854328664 | K9: =C4-J9 -> 9.854567134
B10: Calculations made in VBA from the user-defined function ExpDiff
B12: 1 | C12: 2 | D12: 3 | E12: 4 | F12: 5
A13: 1 | B13: =ExpDiff(MA,MB,SA,SB,$A13,B$12) -> 0 | C13: =ExpDiff(MA,MB,SA,SB,$A13,C$12) -> 0.03287211118 | D13: 0.006268141381 | E13: 0.1658665749 | F13: -0.03711711229 | K13: 9.887439245
A14: 2 | B14: -0.03287211118 | C14: 0 | D14: 0.0324712079 | E14: 0.2745918538 | F14: 0.004536954727 | K14: 9.854567134
A15: 3 | B15: -0.006268141381 | C15: -0.0324712079 | D15: 0 | E15: 0.1678913572 | F15: -0.03707465322 | K15: =K13-K14 -> 0.03287211118
A16: 4 | B16: -0.1658665749 | C16: -0.2745918538 | D16: -0.1678913572 | E16: 0 | F16: -0.3051267767
A17: 5 | B17: 0.03711711229 | C17: -0.004536954727 | D17: 0.03707465322 | E17: 0.3051267767 | F17: 0
A19: Sequence | B19: 4 | C19: 3 | D19: 2 | E19: 1 | F19: 5
C20: =INDEX($B$13:$F$17,B19,C19) -> -0.1678913572 | D20: =INDEX($B$13:$F$17,C19,D19) -> -0.0324712079 | E20: =INDEX($B$13:$F$17,D19,E19) -> -0.03287211118 | F20: =INDEX($B$13:$F$17,E19,F19) -> -0.03711711229
A21: =IF(C21<0,"stable","not stable") -> stable | B21: max | C21: =MAX(C20:F20) -> -0.0324712079

Sheet 11.3 Sim
A1: Example 11.3 | C1: Simulation Model
A3: Job j | B3: 1 | C3: 2 | D3: 3 | E3: 4 | F3: 5
A4: Mean A | B4: 9.94 | C4: 10.14 | D4: 10.15 | E4: 10.3 | F4: 10.45 | G4: =SUM(MA) -> 50.98
A5: StDev A | B5: 0.32 | C5: 0.02 | D5: 0.73 | E5: 0.91 | F5: 0.27
A6: Mean B | B6: 10.16 | C6: 10.16 | D6: 10.26 | E6: 10.45 | F6: 10.46
A7: StDev B | B7: 0.74 | C7: 0.11 | D7: 0.76 | E7: 0.2 | F7: 0.05
I8: Results
A10: Sequence | B10: 1 | C10: 2 | D10: 3 | E10: 4 | F10: 5 | H10: Sequence | I10: Mean | J10: St. Dev.
A11: Mean A | B11: =INDEX(MA,B10) -> 9.94 | C11: =INDEX(MA,C10) -> 10.14 | D11: =INDEX(MA,D10) -> 10.15 | E11: =INDEX(MA,E10) -> 10.3 | F11: =INDEX(MA,F10) -> 10.45 | H11: 4-3-2-1-5 | I11: 62.06572695 | J11: 1.257489151
A12: StDev A | B12: =INDEX(SA,B10) -> 0.32 | C12: =INDEX(SA,C10) -> 0.02 | D12: =INDEX(SA,D10) -> 0.73 | E12: =INDEX(SA,E10) -> 0.91 | F12: =INDEX(SA,F10) -> 0.27 | H12: 1-2-3-4-5 | I12: 62.11079053 | J12: 0.9574363681
A13: Mean B | B13: =INDEX(MB,B10) -> 10.16 | C13: =INDEX(MA,C10) -> 10.14 | D13: =INDEX(MA,D10) -> 10.15 | E13: =INDEX(MA,E10) -> 10.3 | F13: =INDEX(MA,F10) -> 10.45
A14: StDev B | B14: =INDEX(SB,B10) -> 0.74 | C14: =INDEX(SB,C10) -> 0.11 | D14: =INDEX(SB,D10) -> 0.76 | E14: =INDEX(SB,E10) -> 0.2 | F14: =INDEX(SB,F10) -> 0.05
A16: Times | B16: =_xll.PsiNormal(B11,B12) -> 9.904136859 | C16: =_xll.PsiNormal(C11,C12) -> 10.15135289 | D16: =_xll.PsiNormal(D11,D12) -> 10.37910695 | E16: =_xll.PsiNormal(E11,E12) -> 9.796304366 | F16: =_xll.PsiNormal(F11,F12) -> 10.93334913
B17: =_xll.PsiNormal(B13,B14) -> 10.89072789 | C17: =_xll.PsiNormal(C13,C14) -> 10.21980254 | D17: =_xll.PsiNormal(D13,D14) -> 10.70773371 | E17: =_xll.PsiNormal(E13,E14) -> 10.26252529 | F17: =_xll.PsiNormal(F13,F14) -> 10.43462353
A19: Completions | B19: =B16 -> 9.904136859 | C19: =B19+C16 -> 20.05548975 | D19: =C19+D16 -> 30.4345967 | E19: 40.23090107 | F19: 51.1642502 | G19: Mean | H19: St. Dev
B20: =B19+B17 -> 20.79486475 | C20: =MAX(B20,C19)+C17 -> 31.0146673 | D20: =MAX(C20,D19)+D17 -> 41.722401 | E20: 51.98492629 | F20: =MAX(E20,F19)+F17 -> 62.41954982 | G20: =_xll.PsiMean(F20) -> 62.11079053 | H20: =_xll.PsiStdDev(F20) -> 0.9574363681
F22: Total on Mch A, as a check on G4: | G22: =_xll.PsiMean(F19) -> 50.98000068

Sheet 11.4
A1: Example 11.4 | C1: Simulation Model
C3: epsilon = | D3: 0.001
A4: Means | B4: job | C4: 1 | D4: 2
B5: a | C5: =1-$D$3 -> 0.999 | D5: 1
B6: b | C6: 1 | D6: =1-$D$3 -> 0.999
A8: Realizations | C8: =C5 -> 0.999 | D8: =_xll.PsiExponential(D5) -> 0.420846817
C9: =_xll.PsiExponential(C6) -> 0.9607312235 | D9: =D6 -> 0.999
A11: Sequence | C11: 1 | D11: 2 | F11: 2 | G11: 1
A12: Completions | C12: =C8 -> 0.999 | D12: =C12+D8 -> 1.419846817 | F12: =D8 -> 0.420846817 | G12: =F12+C8 -> 1.419846817
C13: =C12+C9 -> 1.959731223 | D13: =MAX(D12,C13)+D9 -> 2.958731223 | F13: =F12+D9 -> 1.419846817 | G13: =MAX(G12,F13)+C9 -> 2.38057804
C15: Expected makespan | D15: =_xll.PsiMean(D13) -> 3.498108983 | F15: Optimum --> | G15: =_xll.PsiMean(G13) -> 2.998990745
C17: Deterministic counterpart | D17: =3-2*D3 -> 2.998 | E17: <-- Optimum | G17: =3.5-2*D3 -> 3.498

Sheet 11.5a
A1: Example 11.5 | C1: Deterministic counterpart
A3: Means | B3: job | C3: 1 | D3: 2
B4: a | C4: 1 | D4: 1.5
B5: b | C5: 1.5 | D5: 1
C7: 1 | D7: 2 | F7: 2 | G7: 1
A8: Completions | C8: =C4 -> 1 | D8: =C8+D4 -> 2.5 | F8: =D4 -> 1.5 | G8: =F8+C4 -> 2.5
C9: =C8+C5 -> 2.5 | D9: =MAX(C9,D8)+D5 -> 3.5 | F9: =F8+D5 -> 2.5 | G9: =MAX(F9,G8)+C5 -> 4

Sheet 11.5b
A1: Example 11.5 | C1: Simulation with Uniform Distributions
A3: Means | B3: job | C3: 1 | D3: 2
B4: a | C4: 1 | D4: =_xll.PsiUniform(0,3) -> 1.924383299
B5: b | C5: =_xll.PsiUniform(0,3) -> 2.94984802 | D5: 1
C7: 1 | D7: 2 | F7: 2 | G7: 1
A8: Completions | C8: =C4 -> 1 | D8: =C8+D4 -> 2.924383299 | F8: =D4 -> 1.924383299 | G8: =F8+C4 -> 2.924383299
C9: =C8+C5 -> 3.94984802 | D9: =MAX(C9,D8)+D5 -> 4.94984802 | F9: =F8+D5 -> 2.924383299 | G9: =MAX(F9,G8)+C5 -> 5.874231319 | I9: Here, the means
C10: mean | D10: =_xll.PsiMean(D9) -> 3.998888255 | F10: mean | G10: =_xll.PsiMean(G9) -> 3.999999974 | I10: are the same.
C12: S.L. | E12: Makespan for S.L.
C13: 0.55 | D13: =_xll.PsiPercentile(D$9,$C13) -> 4.224631426 | G13: =_xll.PsiPercentile(G$9,$C13) -> 4.15228173 | H13: 2-1 lies above 1-2
C14: 0.6 | D14: =_xll.PsiPercentile(D$9,$C14) -> 4.322610924 | G14: =_xll.PsiPercentile(G$9,$C14) -> 4.319080885 | H14: lines cross near SL = 0.60
C15: 0.65 | D15: =_xll.PsiPercentile(D$9,$C15) -> 4.41704265 | G15: =_xll.PsiPercentile(G$9,$C15) -> 4.49116241 | H15: 1-2 lies above 2-1
D16: corresponds to Figure 11.1
A18: Uncertain Function Summary Information
B19: Cell | C19: Formula | D19: Mean | E19: Std Dev | F19: Minimum | G19: Maximum | H19: 25th Pctlle | I19: 50th Pctle | J19: 75th Pctle
B20: 11.5b'!$D$9 | C20: MAX(C9,D8)+D5 | D20: 3.998888255 | E20: 0.7075773981 | F20: 2.012415618 | G20: 4.999992849 | H20: 3.499238809 | I20: 4.121431468 | J20: 4.596877899
B21: 11.5b'!$G$9 | C21: MAX(F9,G8)+C5 | D21: 3.999999974 | E21: 1.226359154 | F21: 1.019506418 | G21: 6.993824591 | H21: 3.121854311 | I21: 3.996301348 | J21: 4.877549638

Sheet 11.5c
A1: Example 11.5 | C1: Minimize d subject to service level floor
A3: Means | B3: job | C3: 1 | D3: 2 | F3: d | G3: 4.32
B4: a | C4: 1 | D4: =_xll.PsiUniform(0,3) -> 1.578753695
B5: b | C5: =_xll.PsiUniform(0,3) -> 1.151800671 | D5: 1
C7: 1 | D7: 2 | F7: 2 | G7: 1
A8: Completions | C8: =C4 -> 1 | D8: =C8+D4 -> 2.578753695 | F8: =D4 -> 1.578753695 | G8: =F8+C4 -> 2.578753695
C9: =C8+C5 -> 2.151800671 | D9: =MAX(C9,D8)+D5 -> 3.578753695 | F9: =F8+D5 -> 2.578753695 | G9: =MAX(F9,G8)+C5 -> 3.730554366
C10: on time? | D10: =IF(D9<=G3,1,0) -> 1 | G10: =IF(G9<=G3,1,0) -> 1
C11: S.L. | D11: =_xll.PsiMean(D10) -> 0.59803 | G11: =_xll.PsiMean(G10) -> 0.60093
D13: corresponds to Figure 11.1
D14: For a target of S.L. = 0.6, 1-2 lies above 2-1
D15: so it reaches the target at a smaller due date.
D16: 2-1 minimizes d.

Sheet 11.5d
A1: Example 11.5 | C1: Minimize d + gE(T)
A3: Means | B3: job | C3: 1 | D3: 2 | F3: d | G3: 4.316751621
B4: a | C4: 1 | D4: =_xll.PsiUniform(0,3) -> 1.554071088 | F4: g | G4: 2.5
B5: b | C5: =_xll.PsiUniform(0,3) -> 1.813532245 | D5: 1
C7: 1 | D7: 2 | F7: 2 | G7: 1
A8: Completions | C8: =C4 -> 1 | D8: =C8+D4 -> 2.554071088 | F8: =D4 -> 1.554071088 | G8: =F8+C4 -> 2.554071088
C9: =C8+C5 -> 2.813532245 | D9: =MAX(C9,D8)+D5 -> 3.813532245 | F9: =F8+D5 -> 2.554071088 | G9: =MAX(F9,G8)+C5 -> 4.367603333
C10: Tardiness | D10: =MAX(0,D9-G3) -> 0 | G10: =MAX(0,G9-G3) -> 0.05085171171
C11: E[T] | D11: =_xll.PsiMean(D10) -> 0.1440118036 | G11: =_xll.PsiMean(G10) -> 0.3547562171
C13: d +gE[T] | D13: =G3+G4*D11 -> 4.67678113 | G13: =G3+G4*G11 -> 5.203642164
C14: optimal | D14: 4.676444879 | F14: <-- opt | G14: 5.213223771
C15: d* | D15: 4.323796121 | G15: 4.316751621
